bitfinex-derivatives/quotes_BTCF0:USTF0_20251230
["timestamp","ask_amount","ask_price","bid_price","bid_amount"]
[1767106496345,0.0112602,88922.0,88904.0,0.030495]
[1767106496643,0.16734251,88920.0,88895.0,0.00016871]
[1767106496843,0.09572,88919.0,88892.0,0.0112639]
[1767106497049,0.09572,88919.0,88896.0,0.0112634]
[1767106497446,0.09572,88919.0,88892.0,0.09572]
[1767106497651,0.0112599,88925.0,88892.0,0.09572]
[1767106497854,0.00016871,88917.0,88900.0,0.00016871]
[1767106498153,0.00016871,88917.0,88901.0,0.05788]
[1767106498345,0.00016871,88917.0,88902.0,0.09572]
[1767106498541,0.00016871,88917.0,88900.0,0.00016871]
[1767106500051,0.0112583,88938.0,88900.0,0.00016871]
[1767106500258,0.09572,88937.0,88919.0,0.0112604]
[1767106500460,0.09572,88942.0,88917.0,0.09572]
[1767106500645,0.05,88950.0,88932.0,0.0112589]
[1767106500844,0.05,88950.0,88934.0,0.0112586]
[1767106501050,0.05,88950.0,88937.0,0.0112582]
[1767106501256,0.09572,88980.0,88933.0,0.09588871]
[1767106501553,0.0112518,88989.0,88952.0,0.0112563]
[1767106501853,0.0112518,88989.0,88938.0,0.11244862]
[1767106501854,0.16734251,88980.0,88953.0,0.15356]
[1767106502151,0.16734251,88980.0,88954.0,0.09572]
[1767106502355,0.0112517,88989.0,88954.0,0.09572]
[1767106502556,0.26306251,88990.0,88958.0,0.00016861]
[1767106502747,0.27431411,88990.0,88958.0,0.00016861]
[1767106503053,0.27431411,88990.0,88928.0,0.07862836]
[1767106503054,0.16734251,88970.0,88928.0,0.07862836]
[1767106503257,0.16734251,88970.0,88888.0,0.0112644]
[1767106503258,0.16734251,88950.0,88914.0,0.07862836]
[1767106503444,0.09568,88964.0,88920.0,0.16734251]
[1767106503650,0.09568,88966.0,88921.0,0.11239238]
[1767106503851,0.17859531,88980.0,88920.0,0.16734251]
[1767106504046,0.05784,88975.0,88940.0,0.0112578]
[1767106504258,0.00016861,88966.0,88949.0,0.00016861]
[1767106504558,0.00016861,88966.0,88950.0,0.09568]
[1767106505054,0.09568,88979.0,88950.0,0.09568]
[1767106505256,0.09568,88990.0,88955.0,0.0112559]
[1767106505450,0.09568,88991.0,88956.0,0.0578]
[1767106505657,0.16734251,88990.0,88957.0,0.0112556]
[1767106506055,0.00016861,88982.0,88965.0,0.00016861]
[1767106506258,0.00016861,88982.0,88966.0,0.09568]
[1767106506755,0.00016861,88982.0,88965.0,0.00016861]
[1767106506953,0.00016861,88982.0,88962.0,0.09568]
[1767106507658,0.09568,88992.0,88962.0,0.09568]
[1767106508558,0.00016861,88986.0,88968.0,0.00016861]
[1767106508750,0.00016861,88986.0,88969.0,0.01758979]
[1767106508945,0.00016861,88986.0,88970.0,0.01758979]
[1767106509261,0.00016861,88986.0,88926.0,0.07862836]
[1767106509459,0.15348,88985.0,88947.0,0.02941097]
[1767106509765,0.15348,88985.0,88948.0,0.14179956]
[1767106510055,0.15348,88985.0,88949.0,0.18289097]
[1767106510249,0.0112541,88971.0,88950.0,0.02941097]
[1767106510450,0.0112541,88971.0,88952.0,0.00016861]
[1767106510652,0.15348,88985.0,88952.0,0.00016861]
[1767106510947,0.0112532,88977.0,88952.0,0.00016861]
[1767106511154,0.0112525,88983.0,88953.0,0.02940172]
[1767106511353,0.09568,88985.0,88954.0,0.06868307]
[1767106511558,0.09568,88985.0,88955.0,0.02940172]
[1767106511749,0.09568,88985.0,88956.0,0.09568]
[1767106511948,0.0112544,88968.0,88956.0,0.09568]
[1767106512155,0.0112544,88968.0,88953.0,0.09568]
[1767106512346,0.00016861,88986.0,88967.0,0.0112544]
[1767106512552,0.00016861,88986.0,88965.0,0.0112546]
[1767106512761,0.00016861,88986.0,88966.0,0.09564]
[1767106512961,0.01142071,88986.0,88966.0,0.09564]
[1767106513155,0.0112527,88981.0,88956.0,0.03928135]
[1767106513462,0.01142071,88986.0,88957.0,0.18276848]
[1767106513657,0.01142071,88986.0,88958.0,0.02936848]
[1767106513853,0.0112525,88983.0,88952.0,0.01142491]
[1767106514058,0.05776,88982.0,88959.0,0.09564]
[1767106514359,0.00016861,88986.0,88966.0,0.0112545]
[1767106514755,0.00016861,88986.0,88960.0,0.0112553]
[1767106515062,0.00016861,88986.0,88959.0,0.09564]
[1767106515063,0.00016861,88986.0,88961.0,0.15377]
[1767106515464,0.00016861,88986.0,88962.0,0.0112551]
[1767106515666,0.0112522,88985.0,88961.0,0.15377]
[1767106515961,0.00016861,88986.0,88961.0,0.15377]
[1767106516663,0.00016861,88986.0,88964.0,0.0112548]
[1767106517450,0.01142081,88986.0,88961.0,0.15377]
[1767106517657,0.0112533,88976.0,88952.0,0.00016861]
[1767106517858,0.0112533,88976.0,88943.0,0.03928135]
[1767106517859,0.00016861,88986.0,88943.0,0.05772]
[1767106518161,0.00016861,88986.0,88965.0,0.0112546]
[1767106518355,0.00016861,88986.0,88964.0,0.0112548]
[1767106518552,0.00016861,88986.0,88967.0,0.0112544]
[1767106518850,0.00016861,88986.0,88969.0,0.0112541]
[1767106519051,1.0016433,89055.0,88974.0,0.0112536]
[1767106519260,0.0112499,89003.0,88974.0,0.0112536]
[1767106519555,0.0112479,89019.0,88963.0,0.0112548]
[1767106519760,0.0112462,89033.0,88963.0,0.0112548]
[1767106519761,0.0112483,89016.0,88969.0,0.03928135]
[1767106519970,0.09564,89018.0,88980.0,0.03928135]
[1767106520264,0.09564,89018.0,88969.0,0.11238922]
[1767106520265,0.00016861,89008.0,88990.0,0.00016861]
[1767106520461,0.00016861,89008.0,88996.0,0.0112507]
[1767106520855,0.00016861,89008.0,88991.0,0.1534]
[1767106521062,0.00016861,89008.0,88992.0,0.04692139]
[1767106521259,0.00016861,89008.0,88993.0,0.04692139]
[1767106521462,0.00016861,89008.0,88992.0,0.11235702]
[1767106521463,0.03617819,89024.0,89009.0,0.0112491]
[1767106521654,0.01144076,89076.0,89010.0,0.07534357]
[1767106521855,0.5618,89037.0,89017.0,0.0112481]
[1767106522167,0.5618,89037.0,89010.0,0.05776]
[1767106522364,0.5618,89037.0,89011.0,0.01758084]
[1767106522565,0.00016851,89032.0,89015.0,0.00016851]
[1767106523066,0.01141481,89032.0,89015.0,0.00016851]
[1767106523266,0.0112471,89026.0,89002.0,0.03928135]
[1767106523568,0.0112465,89030.0,89003.0,0.01758172]
[1767106523763,0.09564,89031.0,89004.0,0.01758172]
[1767106523961,0.0112469,89027.0,89005.0,0.01758172]
[1767106524160,0.0112469,89027.0,89007.0,0.00012851]
[1767106524368,0.0112469,89027.0,89008.0,0.01758172]
[1767106524369,0.0112069,89027.0,89008.0,0.01758172]
[1767106524571,0.0112473,89024.0,89007.0,0.00012851]
[1767106524867,0.09564,89024.0,89008.0,0.01758376]
[1767106525071,0.0112477,89021.0,89001.0,0.05776]
[1767106525254,0.0112477,89021.0,89002.0,0.01758436]
[1767106525460,0.0112492,89009.0,88985.0,0.03928135]
[1767106525660,0.5618,89017.0,88979.0,0.0590206]
[1767106525661,0.0112512,88993.0,88979.0,8.781e-05]
[1767106525863,0.09564,88997.0,88979.0,8.781e-05]
[1767106526056,0.09564,88996.0,88970.0,0.05776]
[1767106526260,0.00016851,88997.0,88964.0,0.09564]
[1767106526458,0.09576851,88997.0,88966.0,0.0112546]
[1767106526764,0.00016851,88997.0,88970.0,0.011254]
[1767106526969,0.0956,88996.0,88973.0,0.0112536]
[1767106527269,8.781e-05,88995.0,88976.0,0.00016851]
[1767106527467,0.5618,88985.0,88962.0,0.05893279]
[1767106527770,0.5618,88985.0,88952.0,0.0112563]
[1767106527967,0.05772,88984.0,88952.0,0.0112563]
[1767106528169,0.05772,88984.0,88952.0,0.05893279]
[1767106528362,0.05772,88984.0,88944.0,0.05772]
[1767106528363,0.40843,88982.0,88944.0,0.05772]
[1767106528571,0.0001686,88972.0,88954.0,0.0001686]
[1767106528871,0.15332,88971.0,88954.0,0.0001686]
[1767106529063,8.781e-05,88970.0,88954.0,0.0001686]
[1767106529570,8.781e-05,88970.0,88933.0,0.0112587]
[1767106529870,0.01134201,88970.0,88931.0,0.164619]
[1767106530167,0.23908,88969.0,88910.0,0.17406167]
[1767106530374,0.0001686,88948.0,88906.0,0.07842167]
[1767106530567,0.0958,88947.0,88906.0,0.11241954]
[1767106530762,0.0112581,88939.0,88909.0,0.07842167]
[1767106530962,0.0001686,88933.0,88908.0,0.07842167]
[1767106531163,0.00013538,88932.0,88910.0,0.0112616]
[1767106531365,5.002e-05,88933.0,88908.0,0.07842167]
[1767106531574,2e-08,88933.0,88910.0,0.07842167]
[1767106531869,2e-08,88933.0,88912.0,0.0112614]
[1767106532056,2e-08,88933.0,88909.0,0.07842167]
[1767106532256,2e-08,88933.0,88899.0,0.19704565]
[1767106532460,0.15341003,88932.0,88907.0,0.0001687]
[1767106532872,0.15336,88931.0,88907.0,0.0001687]
[1767106533257,0.15336,88930.0,88907.0,0.0001687]
[1767106533457,5.003e-05,88932.0,88907.0,0.0001687]
[1767106533665,0.15336,88931.0,88907.0,0.0001687]
[1767106533864,5.003e-05,88932.0,88907.0,0.0001687]
[1767106534067,5.003e-05,88932.0,88908.0,0.0112618]
[1767106534263,5.003e-05,88932.0,88907.0,0.0001687]
[1767106534470,0.01130893,88932.0,88907.0,0.0001687]
[1767106534871,5.003e-05,88932.0,88907.0,0.0001687]
[1767106535261,0.0112591,88931.0,88907.0,0.0001687]
[1767106536070,0.0112595,88928.0,88907.0,0.0001687]
[1767106536375,0.05772,88927.0,88907.0,0.0001687]
[1767106536569,0.09564,88926.0,88907.0,0.0001687]
[1767106536759,0.09564,88926.0,88900.0,0.02952599]
[1767106536760,0.0112604,88921.0,88900.0,0.02952599]
[1767106536959,5.003e-05,88920.0,88899.0,0.02952599]
[1767106537165,5.003e-05,88920.0,88891.0,0.02952599]
[1767106537367,5.003e-05,88920.0,88892.0,0.01760512]
[1767106537571,5.003e-05,88920.0,88877.0,0.1069058]
[1767106537572,0.0112613,88913.0,88887.0,0.02952599]
[1767106537772,0.0112621,88907.0,88884.0,0.02952599]
[1767106538057,0.10684,88906.0,88880.0,0.02952599]
[1767106538262,0.10684,88906.0,88878.0,0.02952599]
[1767106538463,0.0112631,88899.0,88875.0,0.02952599]
[1767106538665,5.003e-05,88898.0,88873.0,0.02952599]
[1767106538871,0.0112634,88897.0,88870.0,0.02952599]
[1767106539067,0.0112638,88894.0,88868.0,0.02952599]
[1767106539375,0.0112657,88879.0,88856.0,0.02950088]
[1767106539565,0.0001687,88890.0,88840.0,0.09568]
[1767106539766,0.0112652,88883.0,88848.0,0.0112695]
[1767106539970,0.0112658,88878.0,88842.0,0.0112703]
[1767106540167,0.0112679,88861.0,88823.0,0.0112727]
[1767106540368,0.00011918,88860.0,88817.0,0.09568]
[1767106540569,0.00011918,88860.0,88819.0,0.11253024]
[1767106540877,0.09568,88859.0,88840.0,0.0112705]
[1767106541076,0.1052,88863.0,88840.0,0.0112705]
[1767106541374,0.05776,88864.0,88846.0,0.0112697]
[1767106541578,1.5,88899.0,88846.0,0.0112697]
[1767106541579,0.09568,88868.0,88846.0,0.0112697]
[1767106541774,0.09568,88868.0,88851.0,0.02935681]
[1767106541975,0.0112676,88863.0,88837.0,0.02935681]
[1767106542274,0.0112694,88849.0,88813.0,0.09568]
[1767106542477,0.15344,88848.0,88814.0,0.01124]
[1767106542671,0.0112673,88866.0,88825.0,0.0112724]
[1767106542974,0.0112673,88866.0,88814.0,0.01124]
[1767106542975,0.0112682,88859.0,88822.0,0.09568]
[1767106543182,0.011265,88885.0,88826.0,0.11255494]
[1767106543473,0.011265,88885.0,88820.0,0.09568]
[1767106543474,0.1052,88884.0,88827.0,0.05776]
[1767106543670,0.0112662,88875.0,88827.0,0.05776]
[1767106543975,0.0112662,88875.0,88836.0,0.0112709]
[1767106544166,0.0001688,88864.0,88847.0,0.0001688]
[1767106545872,0.0001688,88864.0,88837.0,0.0937888]
[1767106546279,0.0001188,88864.0,88842.0,0.0112702]
[1767106546471,0.23928,88893.0,88837.0,0.0937888]
[1767106546472,0.0112644,88889.0,88854.0,0.0112687]
[1767106546672,0.0112647,88887.0,88849.0,0.09572]
[1767106546871,0.09572,88886.0,88850.0,0.09572]
[1767106547078,0.09572,88886.0,88851.0,0.09572]
[1767106547273,0.0112664,88873.0,88840.0,0.0112705]
[1767106547477,0.0001688,88865.0,88848.0,0.0001688]
[1767106547970,0.0114362,88865.0,88848.0,0.0001688]
[1767106548175,0.0114362,88865.0,88827.0,0.0112722]
[1767106548376,0.0114362,88865.0,88831.0,0.0112717]
[1767106548677,0.0001688,88865.0,88825.0,0.112541]
[1767106548982,0.0112681,88860.0,88827.0,0.0112721]
[1767106549182,0.1069881,88860.0,88825.0,0.112541]
[1767106549379,0.0112689,88854.0,88824.0,0.09572]
[1767106549579,0.0112689,88853.0,88824.0,0.09572]
[1767106549783,0.09572,88860.0,88824.0,0.09572]
[1767106550078,0.09572,88860.0,88815.0,0.09572]
[1767106550279,0.0112718,88831.0,88814.0,0.01124]
[1767106550472,0.09572,88830.0,88814.0,0.01124]
[1767106550678,0.0001688,88846.0,88814.0,0.01124]
[1767106550876,0.0112703,88842.0,88814.0,0.01124]
[1767106551183,0.0958888,88846.0,88817.0,0.0112735]
[1767106551482,0.0958888,88846.0,88816.0,0.0112735]
[1767106551680,0.0958888,88846.0,88817.0,0.01761905]
[1767106551981,0.0958888,88846.0,88816.0,0.0112735]
[1767106552278,0.0958888,88846.0,88817.0,0.01761872]
[1767106552279,0.01127,88845.0,88817.0,0.01761872]
[1767106552581,0.0958888,88846.0,88814.0,0.01124]
[1767106552582,0.0112703,88842.0,88814.0,0.01124]
[1767106553381,0.05776,88841.0,88814.0,0.01124]
[1767106553579,0.0001688,88846.0,88815.0,0.01762038]
[1767106553775,0.09576,88845.0,88816.0,0.01762038]
[1767106553974,0.09576,88845.0,88817.0,0.01762003]
[1767106554179,0.09576,88844.0,88824.0,0.0112726]
[1767106554485,0.09576,88844.0,88825.0,0.01762002]
[1767106554682,0.09576,88844.0,88814.0,0.0225138]
[1767106554882,0.09576,88844.0,88815.0,0.01761862]
[1767106555072,0.09576,88844.0,88816.0,0.01761862]
[1767106555276,0.09576,88844.0,88820.0,0.00010842]
[1767106555480,0.0112709,88838.0,88802.0,0.0112753]
[1767106555784,0.09576,88837.0,88810.0,0.0112743]
[1767106555974,0.0112697,88847.0,88803.0,0.09576]
[1767106555975,0.09576,88842.0,88814.0,0.0112738]
[1767106556178,0.0563275,88881.0,88821.0,0.0112729]
[1767106556179,0.0578,88851.0,88821.0,0.0112729]
[1767106556374,0.09576,88850.0,88818.0,0.0112733]
[1767106556574,0.0001688,88843.0,88813.0,0.0112739]
[1767106556880,0.0112705,88841.0,88806.0,0.09576]
[1767106557079,0.09576,88840.0,88807.0,0.02943476]
[1767106557278,0.0112707,88839.0,88808.0,0.02943476]
[1767106557482,0.0112712,88835.0,88809.0,0.02943476]
[1767106557682,0.0690709,88838.0,88806.0,0.09576]
[1767106557882,0.0690709,88838.0,88807.0,0.02947252]
[1767106558085,0.0112713,88834.0,88806.0,0.09576]
[1767106558283,0.0578,88838.0,88807.0,0.02950192]
[1767106558582,0.0690708,88838.0,88808.0,0.02950192]
[1767106558786,0.0690708,88838.0,88809.0,0.02950192]
[1767106559084,0.0112714,88834.0,88810.0,0.06877277]
[1767106559292,0.0112714,88834.0,88811.0,0.06877277]
[1767106559491,0.0112719,88830.0,88815.0,0.03927085]
[1767106559692,0.0112721,88828.0,88816.0,0.02950192]
[1767106559890,0.0112726,88824.0,88811.0,0.03927085]
[1767106560187,0.0578,88823.0,88781.0,0.10140565]
[1767106560380,0.0001689,88811.0,88780.0,0.01139489]
[1767106560581,0.0112744,88810.0,88780.0,0.00011679]
[1767106560789,0.10452,88809.0,88780.0,0.00011679]
[1767106561087,0.0112755,88801.0,88756.0,0.09576]
[1767106561285,0.0112723,88826.0,88780.0,0.05663]
[1767106561484,0.15356,88825.0,88789.0,0.05663]
[1767106561786,0.23948,88841.0,88791.0,0.05663]
[1767106561787,0.0112733,88819.0,88791.0,0.05663]
[1767106561987,0.09576,88818.0,88791.0,0.05663]
[1767106562184,0.0112691,88852.0,88780.0,0.09576]
[1767106562185,0.00011671,88817.0,88793.0,0.05663]
[1767106562391,0.0001689,88814.0,88796.0,0.0567489]
[1767106562690,0.01129323,88855.0,88796.0,0.0567489]
[1767106562691,0.09576,88837.0,88798.0,0.05663]
[1767106562878,0.0112702,88843.0,88798.0,0.05663]
[1767106563077,0.1070701,88844.0,88813.0,0.0112739]
[1767106563284,0.0958,88844.0,88813.0,0.0112739]
[1767106563480,0.0958,88843.0,88820.0,0.0114419]
[1767106563681,0.0112676,88864.0,88823.0,0.0001689]
[1767106563884,0.0001689,88852.0,88835.0,0.0001689]
[1767106564185,0.0958,88851.0,88835.0,0.0001689]
[1767106564387,0.0958,88851.0,88820.0,0.11255747]
[1767106564581,0.011272,88829.0,88795.0,0.0112762]
[1767106564781,0.1536,88828.0,88800.0,0.0112755]
[1767106564977,0.0958,88827.0,88795.0,0.0112762]
[1767106565182,0.15364,88826.0,88805.0,0.011275]
[1767106565382,0.0001689,88824.0,88807.0,0.00011923]
[1767106565580,0.09539028,88823.0,88807.0,0.00011923]
[1767106566190,0.0578,88822.0,88807.0,0.00011923]
[1767106566383,0.0001689,88824.0,88807.0,0.00011923]
[1767106566581,0.10368,88823.0,88807.0,0.00011923]
[1767106566787,0.0958,88822.0,88807.0,0.00011923]
[1767106567493,0.0958,88821.0,88808.0,0.01762208]
[1767106567686,0.0958,88821.0,88807.0,0.00011923]
[1767106567687,0.0958,88821.0,88799.0,0.19862615]
[1767106567991,0.0001689,88823.0,88780.0,0.05663]
[1767106568191,0.0112685,88857.0,88796.0,0.05663]
[1767106568385,0.0112677,88863.0,88803.0,0.0112751]
[1767106568386,0.0112712,88836.0,88803.0,0.0112751]
[1767106568587,0.10552,88835.0,88808.0,0.0112745]
[1767106568788,0.0001689,88830.0,88813.0,0.0001689]
[1767106568986,0.0958,88829.0,88813.0,0.0001689]
[1767106569195,0.0112666,88872.0,88820.0,0.011273]
[1767106569391,0.011269,88853.0,88814.0,0.11258535]
[1767106569699,0.0112698,88847.0,88811.0,0.0958]
[1767106569995,0.0958,88846.0,88815.0,0.11258535]
[1767106570196,0.0958,88846.0,88816.0,0.0112736]
[1767106570392,0.0001689,88839.0,88824.0,0.07931286]
[1767106570791,0.23952,88888.0,88834.0,0.07931286]
[1767106570997,0.23952,88888.0,88839.0,0.0112706]
[1767106570998,0.16765045,88880.0,88839.0,0.0112706]
[1767106571200,0.16765045,88870.0,88839.0,0.0112706]
[1767106571389,0.1536,88869.0,88840.0,0.07931286]
[1767106571590,0.1536,88869.0,88839.0,0.07931286]
[1767106571901,0.0112687,88855.0,88811.0,0.0958]
[1767106572193,0.0112684,88858.0,88812.0,0.12656749]
[1767106572401,0.10532,88857.0,88813.0,0.03076749]
[1767106572589,0.0958,88859.0,88838.0,0.0112707]
[1767106572795,0.0001688,88857.0,88840.0,0.0114393]
[1767106572990,0.0001688,88857.0,88841.0,0.03076749]
[1767106573196,0.0001688,88857.0,88834.0,0.0958]
[1767106574102,0.0001688,88857.0,88838.0,0.0112707]
[1767106574294,0.0958,88860.0,88838.0,0.0112707]
[1767106574599,0.0958,88860.0,88837.0,0.00016878]
[1767106574797,0.05788,88862.0,88837.0,0.00016878]
[1767106574986,0.16765045,88870.0,88837.0,0.00016878]
[1767106575191,0.0112663,88874.0,88842.0,0.0112703]
[1767106575392,0.0001688,88867.0,88849.0,0.0001688]
[1767106576893,0.0112673,88866.0,88849.0,0.0001688]
[1767106577088,0.0001688,88867.0,88849.0,0.0001688]
[1767106577304,0.0001188,88867.0,88849.0,0.0001688]
[1767106577801,0.16765045,88890.0,88849.0,0.0001688]
[1767106578096,0.0112645,88888.0,88855.0,0.0112686]
[1767106578400,0.0112635,88896.0,88856.0,0.09576]
[1767106578592,0.0112643,88890.0,88858.0,0.0112682]
[1767106578792,0.0001688,88883.0,88865.0,0.0001688]
[1767106578992,0.0959288,88883.0,88865.0,0.0001688]
[1767106579395,0.0112653,88882.0,88865.0,0.0001688]
[1767106579593,0.0112653,88882.0,88866.0,0.01761238]
[1767106579799,0.0959288,88883.0,88867.0,0.01761238]
[1767106579992,0.107194,88883.0,88868.0,0.01761238]
[1767106580302,0.0001688,88883.0,88869.0,0.01761238]
[1767106580600,0.0001688,88883.0,88870.0,0.01761238]
[1767106580804,0.0001688,88883.0,88871.0,0.01761238]
[1767106580994,0.0001688,88883.0,88872.0,0.01761238]
[1767106581301,0.0112657,88879.0,88865.0,0.05955458]
[1767106581504,0.1537688,88883.0,88865.0,0.05955458]
[1767106581695,0.0001688,88883.0,88866.0,0.05938578]
[1767106582401,0.09576,88893.0,88867.0,0.05938578]
[1767106582701,0.15356,88897.0,88882.0,0.05938578]
[1767106582898,0.0112628,88902.0,88884.0,0.05938578]
[1767106583100,0.15356,88901.0,88884.0,0.05938578]
[1767106583295,0.0112629,88900.0,88884.0,0.05938578]
[1767106583497,0.0112629,88900.0,88849.0,0.20285164]
[1767106583498,0.16765045,88894.0,88849.0,0.20285164]
[1767106583690,0.16765045,88860.0,88829.0,0.09576]
[1767106583896,0.05784,88862.0,88830.0,0.09576]
[1767106584298,0.05784,88862.0,88839.0,0.0112706]
[1767106584497,0.0001688,88859.0,88842.0,0.0001688]
[1767106585295,0.0578,88864.0,88851.0,0.0112691]
[1767106585502,0.0578,88864.0,88847.0,0.0112696]
[1767106585803,0.16765045,88880.0,88841.0,0.09576]
[1767106586000,0.0112658,88878.0,88848.0,0.0112695]
[1767106586199,0.0001688,88872.0,88854.0,0.0001688]
[1767106586598,0.0001688,88872.0,88855.0,0.0112686]
[1767106586804,0.0001688,88872.0,88854.0,0.0001688]
[1767106587700,0.16765045,88870.0,88851.0,0.09576]
[1767106587900,0.16765045,88870.0,88848.0,0.0578]
[1767106588304,0.16765045,88860.0,88838.0,0.05776]
[1767106588504,0.0578,88878.0,88838.0,0.05776]
[1767106588505,0.05776,88864.0,88850.0,0.0112692]
[1767106588708,0.0112649,88885.0,88856.0,0.0112685]
[1767106588904,0.16765045,88920.0,88850.0,0.09576]
[1767106588905,0.16765045,88910.0,88871.0,0.0112665]
[1767106589112,0.16765045,88910.0,88851.0,0.0112692]
[1767106589113,0.0112622,88907.0,88868.0,0.09576]
[1767106589410,0.16765045,88910.0,88865.0,0.05776]
[1767106589411,0.1647823,88906.0,88869.0,0.09576]
[1767106589603,0.0112593,88929.0,88881.0,0.0112653]
[1767106589804,0.21319948,88948.0,88896.0,0.0001688]
[1767106589805,0.0001688,88914.0,88896.0,0.0001688]
[1767106590112,0.15352,88913.0,88896.0,0.0001688]
[1767106590507,0.05776,88912.0,88896.0,0.0001688]
[1767106591007,0.0579288,88914.0,88896.0,0.0001688]
[1767106593007,0.0112622,88906.0,88885.0,0.09576]
[1767106593208,0.17891215,88910.0,88886.0,0.01760739]
[1767106593411,0.17891215,88910.0,88887.0,0.01760739]
[1767106593609,0.17891215,88910.0,88888.0,0.01760739]
[1767106593811,0.16765045,88910.0,88889.0,0.01760739]
[1767106594012,0.16765045,88910.0,88891.0,0.0001687]
[1767106594210,0.16765045,88910.0,88892.0,0.01760739]
[1767106594515,0.16765045,88910.0,88893.0,0.01760739]
[1767106594714,0.16765045,88910.0,88891.0,0.0001687]
[1767106595010,0.0579288,88914.0,88891.0,0.0001687]
[1767106595202,0.0579288,88914.0,88891.0,0.0114328]
[1767106595408,0.15348,88913.0,88894.0,0.0112637]
[1767106595712,0.15348,88913.0,88897.0,0.0112633]
[1767106596110,0.15348,88913.0,88891.0,0.0001687]
[1767106596613,0.0112614,88912.0,88891.0,0.0001687]
[1767106598119,0.16765045,88910.0,88881.0,0.09572]
[1767106599113,0.0001688,88914.0,88887.0,0.0001687]
[1767106599308,0.1534,88913.0,88894.0,0.0112636]
[1767106599710,0.1534,88913.0,88887.0,0.0001687]
[1767106600109,0.1534,88913.0,88891.0,0.011264]
[1767106600516,0.05764,88912.0,88887.0,0.03964176]
[1767106600722,0.05764,88912.0,88887.0,0.0001687]
[1767106601016,0.05764,88912.0,88894.0,0.0112636]
[1767106601409,0.05764,88912.0,88890.0,0.0112641]
[1767106601611,0.05764,88912.0,88894.0,0.0112636]
[1767106602410,0.05764,88912.0,88891.0,0.0112641]
[1767106602613,0.05764,88912.0,88891.0,0.1069841]
[1767106602920,0.05764,88912.0,88891.0,0.09572]
[1767106604010,0.0112616,88911.0,88891.0,0.09572]
[1767106604207,0.0112622,88906.0,88887.0,0.0001687]
[1767106604407,0.0112622,88906.0,88877.0,0.0112659]
[1767106604408,0.0112636,88895.0,88874.0,0.05931442]
[1767106604616,0.15332,88894.0,88872.0,0.0112664]
[1767106604810,0.0576,88896.0,88869.0,0.09572]
[1767106605015,0.0576,88896.0,88884.0,0.0112649]
[1767106605216,0.0112612,88914.0,88884.0,0.0112649]
[1767106605420,0.0001687,88908.0,88890.0,0.00016863]
[1767106605617,0.15332,88907.0,88890.0,0.00016863]
[1767106606322,0.15332,88907.0,88880.0,0.0112654]
[1767106606721,0.15332,88907.0,88881.0,0.01760772]
[1767106606921,0.15332,88907.0,88882.0,0.02887282]
[1767106607224,0.15332,88907.0,88883.0,0.01760732]
[1767106607413,0.16765045,88900.0,88874.0,0.09572]
[1767106607612,0.16765045,88900.0,88841.0,0.0112703]
[1767106607613,0.0112636,88895.0,88865.0,0.0112674]
[1767106607808,0.0576,88899.0,88841.0,0.0112703]
[1767106607809,0.011433,88889.0,88859.0,0.0112681]
[1767106608016,0.011433,88889.0,88845.0,0.13816955]
[1767106608017,0.0576,88888.0,88861.0,0.0112678]
[1767106608414,0.0576,88888.0,88864.0,0.0112675]
[1767106608716,0.0576,88888.0,88857.0,0.09572]
[1767106608917,0.0576,88888.0,88858.0,0.0112682]
[1767106609119,0.0688647,88887.0,88857.0,0.09572]
[1767106609312,0.0112649,88885.0,88857.0,0.09572]
[1767106609513,0.0001687,88889.0,88866.0,0.02971399]
[1767106609719,0.0001687,88889.0,88873.0,0.02971399]
[1767106609922,0.0001687,88889.0,88878.0,0.0112657]
[1767106610112,0.0576,88890.0,88878.0,0.0112657]
[1767106610618,0.09572,88892.0,88877.0,0.04097979]
[1767106610814,0.09572,88892.0,88875.0,0.02971399]
[1767106611119,0.0958887,88892.0,88875.0,0.02988269]
[1767106611315,0.0958887,88892.0,88876.0,0.02971399]
[1767106611520,0.0958887,88892.0,88881.0,0.0112652]
[1767106611718,0.16765045,88920.0,88882.0,0.02971399]
[1767106611920,0.15328,88919.0,88888.0,0.02971399]
[1767106612121,0.09572,88918.0,88891.0,0.0112641]
[1767106612622,0.0112608,88917.0,88888.0,0.02971399]
[1767106612821,0.0001687,88911.0,88894.0,0.0001687]
[1767106613313,0.0001687,88911.0,88898.0,0.0112632]
[1767106613518,0.0001687,88911.0,88901.0,0.0112627]
[1767106613719,0.0001687,88911.0,88897.0,0.0112632]
[1767106613920,0.0001687,88911.0,88900.0,0.0112629]
[1767106614220,0.0001687,88911.0,88896.0,0.02971399]
[1767106614415,0.0001687,88911.0,88898.0,0.02971399]
[1767106614616,0.0001687,88911.0,88899.0,0.02971399]
[1767106614921,0.0001687,88911.0,88901.0,0.02971399]
[1767106615119,0.0001687,88911.0,88902.0,0.02971399]
[1767106615314,0.0001687,88911.0,88903.0,0.02971399]
[1767106615511,0.05756,88917.0,88907.0,0.0112619]
[1767106615822,0.05756,88922.0,88907.0,0.0112621]
[1767106616326,0.05756,88922.0,88907.0,0.04097609]
[1767106616519,0.23932,88944.0,88907.0,0.04097609]
[1767106616520,0.0001687,88923.0,88907.0,0.02971399]
[1767106616725,0.05752,88928.0,88913.0,0.02971399]
[1767106616921,0.05752,88931.0,88914.0,0.02971399]
[1767106617425,0.05752,88931.0,88916.0,0.02971399]
[1767106617727,0.0001687,88932.0,88916.0,0.04097489]
[1767106618023,0.05752,88931.0,88906.0,0.05752]
[1767106618325,0.05752,88931.0,88911.0,0.0112615]
[1767106618526,0.05752,88931.0,88907.0,0.011262]
[1767106619129,0.16765045,88930.0,88910.0,0.0001687]
[1767106619330,0.16765045,88920.0,88911.0,0.01760388]
[1767106619530,0.011261,88916.0,88884.0,0.09022839]
[1767106619715,0.16765045,88910.0,88885.0,0.09572]
[1767106619919,0.05752,88909.0,88885.0,0.09572]
[1767106620120,0.05752,88909.0,88884.0,0.09572]
[1767106620326,0.0001687,88905.0,88888.0,0.0001687]
[1767106620529,0.05752,88909.0,88893.0,0.0112638]
[1767106620725,0.3304582,88938.0,88888.0,0.0001687]
[1767106620726,0.0112589,88933.0,88888.0,0.0001687]
[1767106620928,0.15324,88932.0,88904.0,0.0112623]
[1767106621127,0.0112553,88961.0,88900.0,0.16765045]
[1767106621330,0.0112566,88950.0,88922.0,0.0112601]
[1767106621628,0.0001687,88945.0,88928.0,0.0112594]
[1767106621822,0.0001687,88945.0,88927.0,0.0001687]
[1767106621823,0.09572,88956.0,88927.0,0.0001687]
[1767106622023,0.05752,88957.0,88933.0,0.0112587]
[1767106622219,0.05752,88957.0,88927.0,0.0001687]
[1767106622424,0.011252,88987.0,88954.0,0.011256]
[1767106622626,0.15324,88986.0,88960.0,0.0112553]